Cogmind - Beta 13 @@@ ROGUE MODE // 2024.04.05 @ 20:40:33 Player: Cyurio Result: Self-destructed Performance ------------- Evolutions (4) 2000 Regions Visited (10) 2000 Robots Destroyed (41) 205 Value Destroyed (1219) 1219 Prototype IDs (24) 480 Alien Tech Used (0) 0 Bonus (845) 845 TOTAL SCORE: 6749 Bonus ------- High Alert Combat Kills 45 Entered DSFs 500 Aligned with FarCom 300 Cogmind --------- Core Integrity 517/850 Matter 7/300 Energy 100/100 System Corruption 12% Temperature Cool (0) Movement Hovering (60) Location -6/Factory Parts ------- > --- POWER (2) -------- (None) > --- PROPULSION (4) --- Improved Gravmag System > --- UTILITY (7) ------ Targeting Computer > --- WEAPON (2) ------- (None) > --- INVENTORY (5) ---- Medium Storage Unit Advanced Terrain Scan Processor Force Booster Improved Medium Armor Plating Coil Gun Peak State ------------ > --- POWER ------------ Light Angular Momentum Engine > --- PROPULSION ------- Improved Treads Armored Treads > --- UTILITY ---------- Medium Storage Unit Hardened Medium Armor Plating Improved Medium Armor Plating Graphene Brace Force Field > --- WEAPON ----------- Minigun Heavy Machine Gun > --- INVENTORY -------- Light Nuclear Core Compact Wheel Small Storage Unit Improved Medium Armor Plating Medium Laser Heavy Assault Cannon Grenade Launcher Maul Maul [Rating: 40] Favorites ----------- Power Light Ion Engine Engine Light Ion Engine Power Core Light Nuclear Core Propulsion Improved Treads Treads Improved Treads Leg Aluminum Leg Hover Unit Improved Gravmag System Utility Hardened Medium Armor Plating Device Graphene Brace Storage Medium Storage Unit Processor Targeting Computer Protection Hardened Medium Armor Plating Weapon Maul Energy Gun Medium Laser Ballistic Gun Minigun Ballistic Cannon Heavy Assault Cannon Launcher Grenade Launcher Impact Weapon Maul Slashing Weapon Axe Build | -11 -10 -10 -10 -9 -8 -7 -7 -6 -6 -6 ------- Run | Yrd Mat Min Exi Min Mat Fac DSF Fac Was Fac Slots Evolved 8 | . . . . . 4 2 . 2 . . Power 1 | . . . . . . . . 1 . . Propulsion 2 | . . . . . 2 . . . . . Utility 5 | . . . . . 2 2 . 1 . . Weapon . | . . . . . . . . . . . Parts Attached 50 | . 7 . . 2 28 1 4 4 2 2 Power 4 | . . . . . 4 . . . . . Engine 3 | . . . . . 3 . . . . . Core 1 | . . . . . 1 . . . . . Reactor . | . . . . . . . . . . . Propulsion 11 | . 4 . . . 6 . . . . 1 Treads 10 | . 4 . . . 6 . . . . . Leg . | . . . . . . . . . . . Wheel . | . . . . . . . . . . . Hover 1 | . . . . . . . . . . 1 Flight . | . . . . . . . . . . . Utility 17 | . 1 . . . 10 1 . 3 1 1 Device 5 | . . . . . 2 1 . 1 1 . Storage 3 | . 1 . . . 2 . . . . . Processor 1 | . . . . . . . . . . 1 Hackware . | . . . . . . . . . . . Protection 8 | . . . . . 6 . . 2 . . Artifact . | . . . . . . . . . . . Weapon 18 | . 2 . . 2 8 . 4 1 1 . Energy Gun 3 | . 1 . . 1 1 . . . . . Energy Cannon . | . . . . . . . . . . . Ballistic Gun 5 | . . . . . 3 . 2 . . . Ballistic Cannon 5 | . . . . . 2 . 2 . 1 . Launcher 2 | . . . . 1 1 . . . . . Special Weapon . | . . . . . . . . . . . Impact Weapon 2 | . 1 . . . 1 . . . . . Slashing Weapon 1 | . . . . . . . . 1 . . Piercing Weapon . | . . . . . . . . . . . Special Melee Weapon . | . . . . . . . . . . . Unidentified Prototypes 1 | . . . . . 1 . . . . . Parts Lost 17 | . . . . . 11 . 1 . 5 . Power 3 | . . . . . 2 . . . 1 . Propulsion 5 | . . . . . 4 . . . 1 . Utility 5 | . . . . . 2 . 1 . 2 . Weapon 4 | . . . . . 3 . . . 1 . Highest Loss Streak 5 | . . . . . 3 . 1 . 5 . To Critical Strikes . | . . . . . . . . . . . Average Slot Usage (%) 77 | . 96 100 100 100 89 53 56 59 30 2 Engine 8 | . 14 14 14 14 7 7 7 6 3 . Treads 22 | . 21 28 28 28 32 15 15 13 6 . Leg 1 | . 6 . . . . . . . . . Device 4 | . . . . . 8 7 10 8 6 . Storage 14 | . 24 28 28 28 9 7 7 6 3 . Protection 6 | . . . . . 14 7 7 9 3 . Energy Gun 6 | . 18 14 14 12 1 . . . . . Ballistic Gun 3 | . . . . . 5 . 5 11 3 . Impact Weapon 5 | . 9 14 14 14 4 7 . . . . Naked Turns 210 | . . . . . . . . . 24 186 Heaviest Build 84 | 12 23 23 23 24 84 39 40 44 42 . Greatest Support 86 | 20 46 46 46 46 86 43 43 43 43 10 Greatest Overweight (x) 1 | . 1 . . . 1 . . 1 . . Average Overweight (x) . | . . . . . . . . . . . Largest Inventory Capacity 20 | . 10 10 10 10 20 10 10 10 10 5 Average Capacity 12 | . 9 10 10 10 18 10 10 10 7 5 Most Carried 15 | . 10 10 10 10 15 10 10 10 10 5 Average Carried 9 | . 8 10 9 10 11 9 9 9 7 4 Final Capacity 10 | 8 10 10 10 10 10 10 10 10 5 5 Final Carried 10 | 6 10 10 10 10 10 9 10 10 3 5 Class Distribution -------------------- 68% | Mutant 31% | Scavenger-Mutant Dominant Class ---------------- Mutant | -10/Materials Mutant | -10/Mines Mutant | -10/Exiles Mutant | -9/Mines Mutant | -8/Materials Scavenger-Mutant | -7/Factory Scavenger-Mutant | -7/DSF Scavenger-Mutant | -6/Factory Scavenger-Mutant | -6/Waste Mutant | -6/Factory Resources | -11 -10 -10 -10 -9 -8 -7 -7 -6 -6 -6 ----------- Run | Yrd Mat Min Exi Min Mat Fac DSF Fac Was Fac Matter Collected 967 | 200 56 . . 33 559 . 119 . . . Remotely . | . . . . . . . . . . . Salvage Created 1205 | . 164 . . 44 826 . 171 . . . Parts 65 | . 7 . . 4 44 . 10 . . . Haulers Intercepted 4 | . 2 . . . 2 . . . . . Recyclers Shooed . | . . . . . . . . . . . Parts Field Recycled . | . . . . . . . . . . . Retrieved Matter . | . . . . . . . . . . . Parts Self-Destructed . | . . . . . . . . . . . Prevented . | . . . . . . . . . . . Kills | -11 -10 -10 -10 -9 -8 -7 -7 -6 -6 -6 ------- Run | Yrd Mat Min Exi Min Mat Fac DSF Fac Was Fac Combat Hostiles Destroyed 31 | . 4 . . 3 21 . 3 . . . Melee 2 | . 1 . . . 1 . . . . . Guns 6 | . . . . . 6 . . . . . Cannons 11 | . . . . . 8 . 3 . . . AOE 7 | . . . . 3 4 . . . . . Classes Destroyed 10 | . 3 . . 1 5 . 1 . . . Worker 4 | . . . . 2 2 . . . . . Builder 1 | . . . . . 1 . . . . . Hauler 4 | . 2 . . . 2 . . . . . Watcher 1 | . . . . . 1 . . . . . Swarmer 10 | . 3 . . 3 4 . . . . . Grunt 14 | . 1 . . . 13 . . . . . Duelist 1 | . . . . . 1 . . . . . Sentry 2 | . . . . . 2 . . . . . Specialist 3 | . . . . . . . 3 . . . Heavy 1 | . . . . . 1 . . . . . Best Kill Streak 7 | . 3 . . 3 7 . 2 . . . Combat Bots Only 4 | . 3 . . 3 4 . 2 . . . Max Kills in Single Turn 3 | . 1 . . 2 3 . 1 . . . Gunslinging . | . . . . . . . . . . . Exploded 2 | . . . . 2 2 . . . . . Melee 1 | . 1 . . . 1 . . . . . Uniques/NPCs Destroyed . | . . . . . . . . . . . Combat | -11 -10 -10 -10 -9 -8 -7 -7 -6 -6 -6 -------- Run | Yrd Mat Min Exi Min Mat Fac DSF Fac Was Fac Hostile Shots Fired 252 | . 30 . . 6 149 . 44 . 7 16 Missed 58 | . 7 . . 1 28 . 17 . . 5 Damage Taken 3633 | . 219 . . 88 2295 . 530 . 294 207 Core 689 | . 53 . . 16 207 . 80 . 163 170 Absorbed by Shields 21 | . . . . . . . . . 21 . Core Remaining (%) 80 | 100 . . . 72 62 . 88 . . . Volleys Fired 84 | . 2 . . 4 66 . 9 . 3 . Largest 2 | . 2 . . 1 2 . 2 . 1 . Hottest 100 | . 100 . . 30 75 . 60 . 60 . Shots Fired 116 | . 4 . . 4 94 . 11 . 3 . Gun 70 | . 4 . . . 62 . 4 . . . Cannon 37 | . . . . . 27 . 7 . 3 . Launcher 9 | . . . . 4 5 . . . . . Special . | . . . . . . . . . . . Kinetic 82 | . . . . . 68 . 11 . 3 . Thermal 25 | . 4 . . . 21 . . . . . Explosive 9 | . . . . 4 5 . . . . . Electromagnetic . | . . . . . . . . . . . Robot Hit Streak 15 | . 4 . . 5 15 . 2 . 5 . Robot Miss Streak 3 | . . . . 1 3 . 2 . . . Penetration Max 1 | . . . . . 1 . . . . . Secondary Targets 1 | . . . . . 1 . . . . . Max Gunslinging Chain 1 | . . . . . 1 . . . . . Shots Hit Robots 97 | . 13 . . 5 69 . 6 . 4 . Core Hits 53 | . 3 . . 4 43 . 3 . . . Critical Kills 1 | . . . . . 1 . . . . . Critical Parts Destroyed 4 | . 2 . . 1 1 . . . . . Critical Strikes 11 | . 2 . . 1 7 . 1 . . . Blast 6 | . . . . . 5 . 1 . . . Smash 5 | . 2 . . 1 2 . . . . . Melee Attacks 33 | . 13 . . 2 16 . . . 2 . Impact 31 | . 13 . . 2 16 . . . . . Slashing 2 | . . . . . . . . . 2 . Piercing . | . . . . . . . . . . . Sneak Attacks 2 | . 1 . . 1 . . . . . . Combat Hostiles . | . . . . . . . . . . . Follow-up Attacks . | . . . . . . . . . . . Damage Inflicted 3750 | . 417 . . 298 2546 . 301 . 188 . Guns 799 | . 49 . . . 668 . 82 . . . Cannons 1487 | . . . . . 1097 . 216 . 174 . Explosions 673 | . . . . 196 477 . . . . . Melee 788 | . 368 . . 102 304 . . . 14 . Ramming 3 | . . . . . . . 3 . . . Kinetic 2034 | . . . . . 1562 . 298 . 174 . Thermal 252 | . 49 . . . 203 . . . . . Explosive 673 | . . . . 196 477 . . . . . Electromagnetic . | . . . . . . . . . . . Impact 774 | . 368 . . 102 304 . . . . . Slashing 14 | . . . . . . . . . 14 . Piercing . | . . . . . . . . . . . Highest Corruption 12 | . . . . . 4 . . 11 11 12 Average Corruption 8 | . . . . . 3 . . 10 11 11 Corruption Purged . | . . . . . . . . . . . Corruption Blocked . | . . . . . . . . . . . Effects 35 | . . . . . 7 . . 12 3 13 Message Errors 11 | . . . . . 2 . . 4 . 5 Matter Fused 6 | . . . . . 1 . . 4 . 1 Heat Flow Errors 4 | . . . . . 1 . . 1 1 1 Energy Discharges 3 | . . . . . 1 . . 1 . 1 Parts Rejected 1 | . . . . . . . . . 1 . Parts Fused 1 | . . . . . . . . 1 . . Data Loss (minor) 2 | . . . . . . . . 1 . 1 Misfires 2 | . . . . . 2 . . . . . Alerts 2 | . . . . . . . . . . 2 Misdirections 3 | . . . . . . . . . 1 2 Overload Shots . | . . . . . . . . . . . Overflow Damage 289 | . 99 . . 99 91 . . . . . Projectiles 6 | . . . . . 6 . . . . . Explosions 54 | . . . . 37 17 . . . . . Melee 229 | . 99 . . 62 68 . . . . . Knockbacks 9 | . 3 . . . 6 . . . . . Impact 3 | . 3 . . . . . . . . . Kinetic 5 | . . . . . 5 . . . . . Secondary 1 | . . . . . 1 . . . . . Self-Inflicted Damage 69 | . . . . 46 23 . . . . . Shots 3 | . . . . 2 1 . . . . . Rammed 1 | . . . . . . . 1 . . . Targets Rammed 1 | . . . . . . . 1 . . . Kicked . | . . . . . . . . . . . Crushed . | . . . . . . . . . . . Highest Temperature 541 | . 39 . . . 541 . 3 165 123 105 Average Temperature 164 | . 20 . . . 174 . 3 88 51 69 Received Heat Transfer 1050 | . 60 . . . 801 . 90 . . 99 Effects 22 | . . . . . 22 . . . . . Shutdowns 6 | . . . . . 6 . . . . . Energy Bleed 3 | . . . . . 3 . . . . . Interference 3 | . . . . . 3 . . . . . Matter Decay 2 | . . . . . 2 . . . . . Short Circuit 1 | . . . . . 1 . . . . . Damage (minor) 2 | . . . . . 2 . . . . . Damage (major) 4 | . . . . . 4 . . . . . Damage (core) 1 | . . . . . 1 . . . . . Siege Activations . | . . . . . . . . . . . Robots Corrupted . | . . . . . . . . . . . Combat Hostiles . | . . . . . . . . . . . Parts Fried 5 | . 1 . . 3 1 . . . . . Impact Corruptions 11 | . 5 . . 3 3 . . . . . Robots Melted . | . . . . . . . . . . . Combat Hostiles . | . . . . . . . . . . . Parts Melted 1 | . . . . . 1 . . . . . Heat Transferred 740 | . 148 . . . 592 . . . . . Parts Sabotaged . | . . . . . . . . . . . Parts Stolen . | . . . . . . . . . . . Parts Stripped . | . . . . . . . . . . . Power Chain Reactions . | . . . . . . . . . . . Alert | -11 -10 -10 -10 -9 -8 -7 -7 -6 -6 -6 ------- Run | Yrd Mat Min Exi Min Mat Fac DSF Fac Was Fac Peak Influence 459 | . 103 17 . 119 459 147 181 94 32 156 Initial 147 | . . 17 . . 46 147 102 94 32 21 Average 104 | . 22 17 . 108 172 147 154 94 21 41 Maximum Alert Level 2 | . . . . . 2 . . . . . Low Security (%) 86 | . 100 100 . 100 65 100 100 100 100 100 Level 1 11 | . . . . . 28 . . . . . Level 2 2 | . . . . . 5 . . . . . Level 3 . | . . . . . . . . . . . Level 4 . | . . . . . . . . . . . Level 5 . | . . . . . . . . . . . High Security . | . . . . . . . . . . . Max Security . | . . . . . . . . . . . Squads Dispatched 7 | . 1 . . . 3 . 1 1 . 1 Investigation 1 | . . . . . . . . . . 1 Extermination 1 | . . . . . . . . 1 . . Reinforcement 5 | . 1 . . . 3 . 1 . . . Assault . | . . . . . . . . . . . Garrison . | . . . . . . . . . . . Intercept . | . . . . . . . . . . . Searches Triggered . | . . . . . . . . . . . Construction Impeded . | . . . . . . . . . . . Haulers Reinforced . | . . . . . . . . . . . Active Scanning Responses . | . . . . . . . . . . . Cargo Convoy Interrupts . | . . . . . . . . . . . Stealth | -11 -10 -10 -10 -9 -8 -7 -7 -6 -6 -6 --------- Run | Yrd Mat Min Exi Min Mat Fac DSF Fac Was Fac Distress Signals 8 | . 2 . . . 6 . . . . . Communications Jammed . | . . . . . . . . . . . Distress Signals . | . . . . . . . . . . . Times Spotted 73 | . 13 . . 3 33 . 7 . 5 12 Peak Tracking Total 8 | . 4 . . 3 8 . 4 1 5 7 Tactical Retreats 3 | . . . . . 1 . . . . 2 Traps | -11 -10 -10 -10 -9 -8 -7 -7 -6 -6 -6 ------- Run | Yrd Mat Min Exi Min Mat Fac DSF Fac Was Fac Traps Triggered 7 | . . . . . 2 . 1 4 . . Indirectly . | . . . . . . . . . . . Trap Hack Attempts . | . . . . . . . . . . . Triggered . | . . . . . . . . . . . Disarmed . | . . . . . . . . . . . Reprogrammed . | . . . . . . . . . . . Reused . | . . . . . . . . . . . Traps Extracted . | . . . . . . . . . . . Installed . | . . . . . . . . . . . Triggered . | . . . . . . . . . . . Machines | -11 -10 -10 -10 -9 -8 -7 -7 -6 -6 -6 ---------- Run | Yrd Mat Min Exi Min Mat Fac DSF Fac Was Fac Machines Disabled 4 | . . . . 2 1 . 1 . . . Max in Single Turn 1 | . . . . 1 1 . 1 . . . Machines Repaired . | . . . . . . . . . . . Machines Dismantled . | . . . . . . . . . . . Machines Sabotaged . | . . . . . . . . . . . Overloaded Fab Kills . | . . . . . . . . . . . Hacking | -11 -10 -10 -10 -9 -8 -7 -7 -6 -6 -6 --------- Run | Yrd Mat Min Exi Min Mat Fac DSF Fac Was Fac Machines Accessed 4 | . 1 . 1 . . 1 . . . 1 Terminals 2 | . 1 . . . . 1 . . . . Fabricators . | . . . . . . . . . . . Repair Stations . | . . . . . . . . . . . Recycling Units 1 | . . . . . . . . . . 1 Scanalyzers . | . . . . . . . . . . . Garrison Access . | . . . . . . . . . . . Total Hacks 6 | . 1 . 1 . . 2 . . . 2 Successful 3 | . 1 . 1 . . 1 . . . . Failed 3 | . . . . . . 1 . . . 2 Catastrophic . | . . . . . . . . . . . Database Lockouts . | . . . . . . . . . . . Manual 1 | . . . 1 . . . . . . . Terminals 3 | . 1 . . . . 2 . . . . Fabricators . | . . . . . . . . . . . Repair Stations . | . . . . . . . . . . . Recycling Units 2 | . . . . . . . . . . 2 Scanalyzers . | . . . . . . . . . . . Garrison Access . | . . . . . . . . . . . Terminal Hacks 3 | . 1 . 1 . . 1 . . . . Record 1 | . 1 . . . . . . . . . Open DSF 1 | . . . . . . 1 . . . . Derelict Proto ID Bank 1 | . . . 1 . . . . . . . Fabricator Hacks . | . . . . . . . . . . . Repair Station Hacks . | . . . . . . . . . . . Recycling Unit Hacks . | . . . . . . . . . . . Scanalyzer . | . . . . . . . . . . . Garrison Access Hacks . | . . . . . . . . . . . Unauthorized Hacks . | . . . . . . . . . . . Terminals . | . . . . . . . . . . . Fabricators . | . . . . . . . . . . . Repair Stations . | . . . . . . . . . . . Recycling Units . | . . . . . . . . . . . Scanalyzers . | . . . . . . . . . . . Garrison Access . | . . . . . . . . . . . Data Cores Recovered . | . . . . . . . . . . . Used . | . . . . . . . . . . . Hacking Detections 2 | . . . . . . 1 . . . 1 Full Trace Events 1 | . . . . . . . . . . 1 Feedback Events 1 | . . . . . . . . . . 1 Corruption 1 | . . . . . . . . . . 1 Feedback Blocked . | . . . . . . . . . . . Robot Schematics Acquired . | . . . . . . . . . . . Robots Built . | . . . . . . . . . . . Authchips . | . . . . . . . . . . . Time . | . . . . . . . . . . . Total Robot Build Rating . | . . . . . . . . . . . Part Schematics Acquired . | . . . . . . . . . . . Parts Built . | . . . . . . . . . . . Authchips . | . . . . . . . . . . . Time . | . . . . . . . . . . . Total Part Build Rating . | . . . . . . . . . . . Parts Repaired . | . . . . . . . . . . . Time . | . . . . . . . . . . . Parts Recycled . | . . . . . . . . . . . Recycled Matter . | . . . . . . . . . . . Retrieved Matter . | . . . . . . . . . . . Retrieved Components . | . . . . . . . . . . . Parts Scanalyzed . | . . . . . . . . . . . Part Schematics Acquired . | . . . . . . . . . . . Parts Damaged . | . . . . . . . . . . . Bothacking | -11 -10 -10 -10 -9 -8 -7 -7 -6 -6 -6 ------------ Run | Yrd Mat Min Exi Min Mat Fac DSF Fac Was Fac Used RIF Installer . | . . . . . . . . . . . Robots Hacked . | . . . . . . . . . . . Non-combat . | . . . . . . . . . . . Combat . | . . . . . . . . . . . Robot Hacks Applied . | . . . . . . . . . . . Relay Couplers Released . | . . . . . . . . . . . Fabnet Peak Effective % . | . . . . . . . . . . . Robots Rewired . | . . . . . . . . . . . Allies Hacked . | . . . . . . . . . . . Hacks Repelled . | . . . . . . . . . . . Allies | -11 -10 -10 -10 -9 -8 -7 -7 -6 -6 -6 -------- Run | Yrd Mat Min Exi Min Mat Fac DSF Fac Was Fac Total Allies . | . . . . . . . . . . . Largest Group . | . . . . . . . . . . . Highest-Rated Group . | . . . . . . . . . . . Highest-Rated Ally . | . . . . . . . . . . . Total Orders . | . . . . . . . . . . . Ally Attacks . | . . . . . . . . . . . Total Damage . | . . . . . . . . . . . Kills . | . . . . . . . . . . . Allies Corrupted . | . . . . . . . . . . . Allies Melted . | . . . . . . . . . . . Intel | -11 -10 -10 -10 -9 -8 -7 -7 -6 -6 -6 ------- Run | Yrd Mat Min Exi Min Mat Fac DSF Fac Was Fac Robot Analysis Total . | . . . . . . . . . . . Derelict Logs Recovered . | . . . . . . . . . . . Drone Launches . | . . . . . . . . . . . Drone Recoveries . | . . . . . . . . . . . Exploration | -11 -10 -10 -10 -9 -8 -7 -7 -6 -6 -6 ------------- Run | Yrd Mat Min Exi Min Mat Fac DSF Fac Was Fac Turns Passed 2661 | . 451 45 383 113 892 23 104 321 78 251 Spaces Moved 1387 | 1 252 29 238 50 306 14 45 163 73 216 Core 165 | . . . . . . . . . 50 115 Treads 1036 | . 168 29 238 50 306 14 45 163 23 . Legs 85 | 1 84 . . . . . . . . . Wheels . | . . . . . . . . . . . Hover 101 | . . . . . . . . . . 101 Flight . | . . . . . . . . . . . Fastest Speed 50 | 120 120 160 160 160 160 165 165 165 50 50 Average Speed 142 | 120 148 160 160 160 172 165 165 177 86 54 Slowest Speed 245 | 120 190 160 160 160 245 165 165 245 165 60 Overloaded Moves . | . . . . . . . . . . . Propulsion Burnouts . | . . . . . . . . . . . Robots Hopped . | . . . . . . . . . . . Cave-ins Triggered . | . . . . . . . . . . . Exploration Rate (%) 26 | 2 51 13 61 20 25 1 43 5 67 8 Regions Visited 10 Branch Regions 3 Pre-discovered Areas . | . . . . . . . . . . . Known Exits Taken 1 | . . . . . . 1 . . . . Unknown Exits Taken 6 | 1 1 1 1 1 1 . . . . . Scrap Searched . | . . . . . . . . . . . Spaces Dug 7 | . 2 . . . 5 . . . . . Terrain Destroyed 65 | . 2 . . 10 49 . 4 . . . Melee 7 | . 2 . . . 5 . . . . . Projectile 13 | . . . . . 9 . 4 . . . AOE 45 | . . . . 10 35 . . . . . Terrain Rammed . | . . . . . . . . . . . Walls Destroyed . | . . . . . . . . . . . Machines Disabled . | . . . . . . . . . . . Actions | -11 -10 -10 -10 -9 -8 -7 -7 -6 -6 -6 --------- Run | Yrd Mat Min Exi Min Mat Fac DSF Fac Was Fac Total 1882 | . 297 28 241 74 542 14 61 198 79 348 Wait 286 | . 14 . . 17 106 . . 23 . 126 Move 1378 | . 251 28 237 49 305 13 44 163 72 216 Hop . | . . . . . . . . . . . Pick Up 19 | . 6 . 2 . 5 . . 3 . 3 Fast Attach 15 | . 1 . . . 7 . 2 2 1 2 Attach 22 | . . . . . 17 1 2 1 1 . Detach 17 | . . . . . 13 . 3 1 . . Swap 14 | . 6 . . 2 5 . . 1 . . Drop 13 | . 4 . 2 . 2 . . 4 . 1 Fire 84 | . 2 . . 4 66 . 9 . 3 . Melee 33 | . 13 . . 2 16 . . . 2 . Ram . | . . . . . . . . . . . Kick . | . . . . . . . . . . . Crush 1 | . . . . . . . 1 . . . Escape Stasis . | . . . . . . . . . . . Rewire . | . . . . . . . . . . . Trap . | . . . . . . . . . . . Miscellaneous . | . . . . . . . . . . . Route ------- -11/Scrapyard -10/Materials -10/Mines (discovered 2 exits: [*Mat] / *Exi) -10/Exiles -9/Mines -8/Materials -7/Factory -7/DSF -6/Factory -6/Waste -6/Factory History --------- Turn | Location | Event 1 | -11/Scrapyard | Discovered new exit (range 0) 1 | -11/Scrapyard | Entered Materials 318 | -10/Materials | Build established: Mutant 442 | -10/Materials | Discovered new exit (range 7) 452 | -10/Materials | Entered Mines 465 | -10/Mines | Discovered new exit (range 11) 491 | -10/Mines | Deemed a non-threat by the Exiles lab entrance 491 | -10/Mines | Discovered new exit (range 5) 497 | -10/Mines | Entered Exiles 537 | -10/Exiles | Met 8R-AWN 565 | -10/Exiles | Met EX-HEX 608 | -10/Exiles | Met EX-BIN 629 | -10/Exiles | Aligned with FarCom system 630 | -10/Exiles | Given EX-Vault access code 669 | -10/Exiles | Opened EX-Vault 679 | -10/Exiles | Found Cloak of Protection 712 | -10/Exiles | Warned to stay clear of 0b10 Research branches 763 | -10/Exiles | Met EX-DEC 865 | -10/Exiles | Discovered new exit (range 10) 880 | -10/Exiles | Left Exiles lab with Cloak of Protection 880 | -10/Exiles | Entered Mines 975 | -9/Mines | Discovered new exit (range 11) 993 | -9/Mines | Entered Materials 993 | -8/Materials | Evolved 4 slots: Propulsion x2, Utility x2 1822 | -8/Materials | Lost 3 parts (1n2w) 1857 | -8/Materials | Discovered new exit (range 16) 1885 | -8/Materials | Entered Factory 1885 | -7/Factory | Evolved 2 slots: Utility x2 1905 | -7/Factory | Identified exit to DSF 1908 | -7/Factory | Entered DSF 1941 | -7/DSF | Discovered new exit (range 12) 1947 | -7/DSF | Additional patrols routed to DSF 2012 | -7/DSF | Entered Factory 2012 | -6/Factory | Evolved 2 slots: Power x1, Utility x1 2113 | -6/Factory | Build established: Scavenger-Mutant 2152 | -6/Factory | System corruption reached 10% 2333 | -6/Factory | Sucked down chute 2333 | -6/Factory | Entered Waste 2347 | -6/Waste | Spotted C-40 Crusher 2365 | -6/Waste | Spotted C-40 Crusher 2372 | -6/Waste | Crushed by Compactor (1 part destroyed, 2 dropped) 2373 | -6/Waste | Spotted C-40 Crusher 2375 | -6/Waste | Crushed by Compactor (1 part destroyed, 1 dropped) 2378 | -6/Waste | Crushed by Compactor (1 part destroyed, 2 dropped) 2391 | -6/Waste | Spotted C-40 Crusher 2399 | -6/Waste | Spotted C-40 Crusher 2402 | -6/Waste | Discovered new exit (range 16) 2411 | -6/Waste | Entered Factory 2418 | -6/Factory | Lost 5 parts (1p1n2u1w) 2662 | -6/Factory | Self-destructed Last Messages --------------- Unit F004. Dispatching Investigation squad. 02443_ Acquired Adv. Terrain Scan Processor. 02446_ System corrupted: Matter fused (-7). 02469_ BW|ZK RY|Y5YZXL:4VXYHV7UD<03 5 02497_ System corrupted: Energy discharge (-26). 02514_ BQT|11SIXH4ZUJ|RT,6/H WTDEMX 02533_ IW|U AUSMWAP4K|J|UFI=XGHJGVDBTPD%L7AZC 02552_ System corrupted: IFF burst signal emitted. 02572_ ALERT: All DSF locations entering lockdown mode. 02578_ System corrupted: Component data lost. 02595_ System corrupted: IFF burst signal emitted. 02597_ Acquired Imp. Gravmag System. 02626_ System corrupted: Heat flow error (+141). 02635_ Acquired Targeting Computer. 02644_ DGYBQIIR2ESXTRJGJGFE